bitfinex/quotes_ETHUSD_20260227
["timestamp","ask_amount","ask_price","bid_price","bid_amount"]
[1772186258575,3.73231906,2015.2,2015.1,0.0011]
[1772186259404,4.97289071,2015.2,2015.1,0.0011]
[1772186259610,0.5,2015.0,2014.7,1.291]
[1772186260183,0.5,2014.8,2014.2,2.53416259]
[1772186261897,1.740822,2014.8,2014.2,2.53416259]
[1772186262081,3.73121906,2014.7,2014.2,2.53416259]
[1772186262997,3.73121906,2014.7,2014.2,1.293]
[1772186263506,3.73121906,2014.7,2014.1,1.24121597]
[1772186263507,0.45037586,2014.6,2013.6,0.47699728]
[1772186263810,1.24100273,2014.5,2013.8,0.47699728]
[1772186264018,1.68930137,2014.5,2013.8,0.47699728]
[1772186264306,0.45037586,2014.4,2013.8,0.47699728]
[1772186265909,3.23121906,2014.3,2013.9,1.71836974]
[1772186266122,3.23121906,2014.5,2013.9,1.71836974]
[1772186266278,0.45037586,2014.7,2013.9,1.71836974]
[1772186267786,4.69126599,2015.1,2013.9,1.71836974]
[1772186267787,3.23121906,2014.6,2014.0,0.47699728]
[1772186268111,3.23121906,2014.9,2014.0,0.47699728]
[1772186268314,0.45037586,2015.0,2014.0,0.47699728]
[1772186270308,1.69113222,2014.9,2014.1,1.71824647]
[1772186270521,1.69113222,2014.9,2014.2,0.47699728]
[1772186271317,1.69113222,2014.9,2014.1,3.01234647]
[1772186271318,0.45037586,2014.8,2014.1,3.01234647]
[1772186271614,3.68159492,2014.8,2014.1,3.01234647]
[1772186271784,3.23121906,2014.8,2014.2,0.47699728]
[1772186271988,2.73121906,2014.7,2014.3,1.294]
[1772186272215,2.73121906,2014.9,2014.3,1.294]
[1772186272813,2.73121906,2014.9,2014.4,1.24106433]
[1772186273913,0.5,2014.7,2014.3,2.53609835]
[1772186274083,2.73121906,2014.8,2014.3,2.53609835]
[1772186274284,2.73121906,2014.7,2014.3,2.53609835]
[1772186275985,2.73121906,2014.7,2014.3,1.295]
[1772186275986,2.73121906,2014.6,2014.3,1.295]
[1772186276192,3.23121906,2014.6,2014.3,2.53612281]
[1772186276888,3.23121906,2014.6,2014.3,1.295]
[1772186277089,2.73121906,2014.5,2014.3,2.53612552]
[1772186279792,3.23121906,2014.5,2014.3,1.295]
[1772186280516,3.23121906,2014.5,2014.1,0.0011]
[1772186280517,0.5,2014.4,2014.1,0.0011]
[1772186280708,0.5,2014.3,2014.1,0.0011]
[1772186282026,1.43621906,2014.2,2014.1,0.0011]
[1772186282198,0.5,2014.6,2014.1,0.0011]
[1772186282827,0.001,2014.5,2014.1,0.0011]
[1772186283702,0.501,2014.5,2014.1,0.0011]
[1772186286811,0.5,2014.4,2014.1,0.0011]
[1772186289805,0.5,2014.3,2014.1,0.0011]
[1772186290009,0.5,2014.3,2013.8,1.302]
[1772186290331,0.5,2014.3,2013.6,1.24263986]
[1772186292317,0.49945,2014.2,2013.6,1.24263986]
[1772186293834,0.49945,2014.2,2013.6,0.0011]
[1772186294323,1.24124919,2014.1,2013.6,0.0011]
[1772186294525,0.49945,2014.0,2013.8,0.0011]
[1772186294932,0.49945,2014.0,2013.6,0.0011]
[1772186296310,0.4999,2014.2,2013.6,0.0033]
[1772186296506,0.48213818,2014.2,2013.6,0.0033]
[1772186297422,1.72334563,2014.2,2013.6,0.0033]
[1772186297735,0.49051909,2014.1,2013.6,0.0033]
[1772186298632,0.49051909,2014.3,2013.7,0.01896182]
[1772186298836,0.001,2014.5,2013.7,0.01896182]
[1772186298837,0.49151909,2014.5,2013.7,0.01896182]
[1772186301436,0.49151909,2014.5,2013.8,1.2414341]
[1772186301437,0.49051909,2014.4,2013.8,1.2414341]
[1772186304711,1.24112594,2014.3,2013.6,1.2426574]
[1772186304920,0.49051909,2014.2,2013.6,1.2426574]
[1772186306928,0.49051909,2014.1,2013.6,1.2426574]
[1772186307324,0.49051909,2014.1,2013.5,0.0011]
[1772186307325,0.48996909,2014.0,2013.5,0.0011]
[1772186308352,0.48996909,2013.6,2013.1,1.307]
[1772186308718,0.48996909,2013.6,2012.8,4.96814469]
[1772186308719,0.48996909,2013.6,2012.8,1.24200046]
[1772186309049,0.48996909,2013.4,2012.6,1.2432743]
[1772186309725,0.48996909,2013.4,2012.6,1.29652251]
[1772186312246,0.48996909,2013.4,2012.7,0.06138964]
[1772186312950,0.48996909,2013.3,2012.7,0.06138964]
[1772186313261,0.48529354,2013.3,2012.7,0.06138964]
[1772186313816,0.48529354,2013.3,2012.8,1.24205087]
[1772186314023,0.48763131,2013.2,2012.7,1.2420766]
[1772186315745,0.48763131,2013.5,2012.7,1.32314058]
[1772186316432,0.48763131,2013.5,2012.8,0.08469785]
[1772186317554,0.48763131,2013.4,2012.7,1.33038123]
[1772186317920,0.48763131,2013.4,2012.8,0.08830463]
[1772186319228,0.48763131,2013.4,2012.9,1.24198916]
[1772186319636,0.48763131,2013.4,2012.9,1.3408463]
[1772186320164,0.53699975,2014.0,2013.2,0.10130118]
[1772186323042,0.53699975,2013.9,2013.3,1.24174241]
[1772186325074,1.24141807,2013.9,2013.2,4.96696965]
[1772186325251,0.53699975,2013.8,2013.2,4.96696965]
[1772186327546,0.53699975,2013.8,2013.2,5.09440608]
[1772186328270,0.53699975,2013.8,2013.3,0.12743643]
[1772186328483,0.53699975,2014.0,2013.3,0.13053117]
[1772186329781,0.53699975,2013.9,2013.4,1.24168073]
[1772186331951,0.53699975,2013.9,2013.4,0.13962825]
[1772186332150,0.53699975,2013.9,2013.4,0.14072825]
[1772186332484,0.53799975,2013.7,2013.4,0.0011]
[1772186334078,0.53699975,2014.0,2013.4,0.0011]
[1772186338186,0.53699975,2013.8,2013.4,0.0011]
[1772186340478,0.53699975,2013.7,2013.4,0.0011]
[1772186341090,0.53699975,2013.6,2013.2,1.2428988]
[1772186341286,2.27221754,2013.9,2013.3,0.53292101]
[1772186341491,0.53699975,2013.8,2013.3,0.53292101]
[1772186341790,0.53699975,2013.8,2013.3,1.02675976]
[1772186341989,0.53699975,2013.8,2013.3,0.53292101]
[1772186342155,0.53699975,2013.8,2013.4,1.24168073]
[1772186342979,2.27217219,2014.0,2013.5,0.53292101]
[1772186343362,1.0308385,2014.0,2013.5,0.53292101]
[1772186343567,0.53699975,2014.0,2013.5,0.53292101]
[1772186344072,1.7783175,2014.0,2013.5,0.53292101]
[1772186344280,0.53699975,2014.0,2013.6,1.2415574]
[1772186344860,1.77831239,2014.0,2013.5,1.77448952]
[1772186345479,0.53699975,2014.0,2013.5,1.77448952]
[1772186345669,0.53699975,2013.7,2013.3,1.24168165]
[1772186346468,0.53699975,2013.7,2013.5,0.0011]
[1772186346669,0.001,2013.6,2013.5,0.0011]
[1772186347174,0.53699975,2013.9,2013.5,0.53402101]
[1772186347671,1.0308385,2013.6,2013.5,0.0011]
[1772186348293,0.53699975,2013.5,2013.3,0.0011]
[1772186350162,0.55645182,2013.7,2013.3,0.0011]
[1772186352875,0.55645182,2013.7,2013.3,1.24284241]
[1772186354898,0.55645182,2013.7,2013.3,1.82050815]
[1772186359094,0.55645182,2013.6,2013.3,0.0011]
[1772186359473,0.55645182,2013.6,2013.2,0.0011]
[1772186359474,0.55645182,2013.5,2013.2,0.0011]
[1772186361095,0.55645182,2013.5,2013.3,0.0011]
[1772186365314,0.001,2013.6,2013.3,1.07260449]
[1772186366282,0.001,2013.6,2013.4,1.24168073]
[1772186367171,0.55645182,2013.5,2013.3,0.0011]
[1772186368383,0.001,2013.6,2013.3,0.0011]
[1772186369004,0.001,2013.6,2013.3,0.57876574]
[1772186370203,0.55745182,2013.6,2013.3,0.0011]
[1772186372408,0.55745182,2013.6,2013.5,0.0011]
[1772186378704,0.001,2013.6,2013.5,0.0011]
[1772186379284,0.001,2013.6,2013.5,0.61346319]
[1772186379511,0.61052885,2013.9,2013.5,0.61346319]
[1772186380879,0.61052885,2013.9,2013.6,0.61526718]
[1772186382207,1.85190281,2013.9,2013.5,0.0011]
[1772186382508,1.85190281,2013.9,2013.5,0.61636718]
[1772186383107,4.96548984,2014.0,2013.3,0.0011]
[1772186383108,0.58349315,2013.5,2013.3,0.0011]
[1772186383690,1.32444968,2013.6,2013.3,0.0011]
[1772186383992,0.58349315,2013.6,2013.3,0.0011]
[1772186384687,0.58349315,2013.8,2013.4,0.61526718]
[1772186385007,0.58349315,2013.8,2013.5,0.0011]
[1772186385192,1.82494027,2013.8,2013.5,0.0011]
[1772186385392,0.58349315,2013.7,2013.5,0.0011]
[1772186387005,2.56574392,2014.1,2013.5,0.61636718]
[1772186387304,2.56574392,2014.1,2013.6,0.61526718]
[1772186387305,1.82481667,2014.0,2013.6,0.61526718]
[1772186387894,0.58349315,2013.9,2013.6,0.61526718]
[1772186388101,0.58349315,2013.9,2013.5,0.0011]
[1772186388525,0.58349315,2013.8,2013.5,0.0011]
[1772186389006,0.58349315,2013.8,2013.5,0.61636718]
[1772186389225,0.74095653,2013.9,2013.5,0.61636718]
[1772186389226,0.58349315,2014.0,2013.6,0.61526718]
[1772186389411,1.82480598,2014.0,2013.6,0.61526718]
[1772186389709,0.58349315,2013.9,2013.6,0.61526718]
[1772186390509,0.58349315,2013.9,2013.5,1.85797705]
[1772186390845,0.58349315,2013.9,2013.5,0.61636718]
[1772186392321,1.824884,2013.9,2013.5,0.61636718]
[1772186392812,0.58349315,2013.8,2013.5,1.8579817]
[1772186393017,1.24137393,2013.9,2013.6,0.61526718]
[1772186393322,1.82486803,2013.9,2013.6,0.61526718]
[1772186394420,0.58349315,2013.9,2013.6,0.61526718]
[1772186394825,1.24135955,2014.0,2013.6,0.61526718]
[1772186395336,0.58349315,2013.9,2013.5,1.24271442]
[1772186395524,0.58349315,2013.9,2013.5,0.0011]
[1772186396935,0.58349315,2013.8,2013.7,0.0011]
[1772186397132,0.001,2013.8,2013.7,0.0011]
[1772186398403,0.58349315,2013.6,2013.3,0.0011]
[1772186398726,0.58349315,2013.4,2013.0,0.0011]
[1772186398899,0.58349315,2013.2,2013.0,0.0011]
[1772186399204,1.98269894,2013.3,2011.8,2.54865336]
[1772186399205,0.58349315,2013.0,2011.8,2.54865336]
[1772186399405,0.58349315,2012.4,2012.0,1.36584238]
[1772186399925,0.58349315,2012.4,2012.0,0.1233]
[1772186400725,0.58349315,2012.4,2012.0,1.36584001]
[1772186400904,0.58349315,2012.6,2012.1,0.61526718]
[1772186401307,0.58349315,2012.5,2012.0,0.12]
[1772186401527,0.58349315,2012.4,2012.1,0.0033]
[1772186401832,0.58349315,2012.6,2012.1,0.0033]
[1772186403218,0.74095653,2012.9,2012.1,0.0033]
[1772186403429,0.58349315,2013.0,2012.3,0.74095653]
[1772186403733,0.58349315,2013.0,2012.4,0.61526718]
[1772186403938,0.58349315,2012.8,2012.5,0.0022]
[1772186404138,0.74095653,2012.9,2012.3,0.61526718]
[1772186404309,1.32444968,2012.9,2012.2,0.0022]
[1772186404510,0.58349315,2012.8,2012.2,0.0022]
[1772186404712,0.58349315,2012.8,2012.2,0.61746718]
[1772186405428,0.58349315,2012.8,2012.3,1.24235948]
[1772186406150,1.32444968,2012.7,2012.4,0.0011]
[1772186406437,0.58349315,2012.6,2012.2,0.0033]
[1772186406634,0.58349315,2012.6,2012.2,1.24570797]
[1772186407138,0.58349315,2012.6,2012.2,0.0033]
[1772186407337,1.24205889,2012.8,2012.0,0.12]
[1772186407338,1.82580035,2012.4,2012.0,0.12]
[1772186407537,0.58349315,2012.3,2012.0,0.12]
[1772186408134,1.32444968,2012.3,2012.0,0.12]
[1772186408437,0.58349315,2012.0,2011.4,2.56991289]
[1772186408736,0.58349315,2012.0,2011.4,1.327]
[1772186408923,0.58349315,2012.0,2011.3,1.24293606]
[1772186409434,0.74095653,2012.1,2011.0,7.04058007]
[1772186409435,0.58349315,2012.1,2011.8,0.0011]
[1772186411519,0.6052735,2012.0,2011.8,0.0011]
[1772186412219,0.6052735,2012.0,2011.1,1.24306515]
[1772186412406,0.6052735,2012.0,2011.0,3.15705514]
[1772186412613,0.6052735,2011.4,2010.9,0.02]
[1772186413535,1.24303898,2011.2,2010.9,0.02]
[1772186413709,0.6052735,2011.1,2010.9,0.02]
[1772186413907,0.6052735,2011.1,2010.1,0.58994047]
[1772186414114,0.6052735,2011.0,2010.2,0.58694047]
[1772186414610,0.6052735,2011.0,2010.5,0.003]
[1772186416443,0.6052735,2010.9,2010.5,0.003]
[1772186417253,0.6052735,2010.7,2010.1,0.003]
[1772186417612,0.6052735,2010.5,2010.1,0.003]
[1772186417819,3.46387754,2010.8,2010.1,0.003]
[1772186417820,0.6052735,2010.8,2010.1,0.003]
[1772186418041,0.6052735,2011.0,2010.1,0.58994047]
[1772186418251,0.6052735,2011.0,2010.3,5.72592347]
[1772186418538,0.6052735,2011.0,2010.2,3.46387754]
[1772186418539,0.6052735,2011.0,2010.2,4.78012]
[1772186418848,0.6052735,2011.0,2010.3,0.58694047]
[1772186419036,1.84825491,2011.3,2010.3,0.58694047]
[1772186419359,1.84825491,2011.3,2010.1,3.93788521]
[1772186419360,0.6052735,2011.2,2010.1,4.52482568]
[1772186419642,0.6052735,2011.0,2010.2,1.24365734]
[1772186419845,1.84826333,2011.3,2010.3,0.58694047]
[1772186420529,0.6052735,2011.2,2010.3,0.58694047]
[1772186420861,0.6052735,2011.2,2010.7,0.0011]
[1772186421522,0.33058685,2012.1,2010.8,0.58694047]
[1772186421725,1.84773792,2012.2,2011.1,0.58694047]
[1772186421939,1.84773792,2012.2,2011.0,20.29414554]
[1772186421940,0.6052735,2012.2,2011.4,0.58694047]
[1772186422522,1.84770263,2012.2,2011.4,0.58694047]
[1772186422857,0.6052735,2012.1,2011.1,0.58694047]
[1772186423233,0.6052735,2012.1,2011.3,0.58694047]
[1772186423424,1.84768822,2012.3,2011.3,0.58694047]
[1772186423744,0.001,2012.4,2011.6,0.58694047]
[1772186423928,0.001,2012.4,2011.7,0.58694047]
[1772186424268,0.001,2012.6,2011.7,0.58694047]
[1772186424425,0.001,2012.6,2011.9,0.58694047]
[1772186424619,0.001,2012.6,2012.1,0.58694047]
[1772186425025,0.001,2012.6,2012.2,0.58694047]
[1772186425230,1.84688016,2013.6,2012.4,0.58694047]
[1772186425428,1.84688016,2013.6,2012.5,11.39518]
[1772186425650,1.24246803,2013.8,2012.9,1.82892963]
[1772186426364,0.001,2013.8,2013.0,0.58694047]
[1772186427525,0.001,2013.8,2013.1,0.58694047]
[1772186427725,0.001,2013.8,2013.2,1.24180409]
[1772186427928,0.001,2014.2,2013.4,0.58694047]
[1772186428239,0.001,2014.2,2013.6,0.58694047]
[1772186429237,1.24218924,2014.2,2013.6,3.965116]
[1772186429568,0.001,2014.2,2013.6,4.55205647]
[1772186429770,0.001,2014.2,2013.6,0.58694047]
[1772186430050,0.001,2014.2,2013.7,1.24149575]
[1772186430840,0.001,2014.2,2013.6,1.24151289]
[1772186431149,0.6062735,2014.2,2013.6,1.24151289]
[1772186431655,0.001,2014.2,2013.6,1.24151289]
[1772186432168,0.6052735,2014.1,2012.9,1.32]
[1772186432361,0.6052735,2013.7,2012.9,1.32]
[1772186432747,0.6052735,2013.4,2012.2,2.74436061]
[1772186432950,0.6052735,2013.4,2012.2,2.15742014]
[1772186433569,0.6052735,2013.4,2012.2,4.626495]
[1772186433772,0.6052735,2013.7,2012.8,2.46907486]
[1772186434159,1.2415574,2013.6,2012.6,3.71124916]
[1772186434458,1.8468309,2013.6,2012.6,3.71124916]
[1772186434871,0.6052735,2013.5,2012.6,1.2421743]
[1772186436645,1.24168073,2013.4,2012.6,1.82911477]
[1772186436842,3.19105076,2013.8,2012.6,1.82911477]
[1772186436843,4.43252744,2013.8,2012.9,0.58694047]
[1772186437068,4.43248751,2013.8,2012.8,4.86349]
[1772186437268,4.43248751,2013.8,2012.9,4.888267]
[1772186437800,0.001,2013.9,2013.3,0.58694047]
[1772186438270,0.001,2014.2,2013.6,3.54934]
[1772186438463,0.001,2014.2,2013.6,2.794097]
[1772186438663,0.001,2014.2,2013.5,1.24159059]
[1772186438859,0.001,2014.2,2013.4,1.24168073]
[1772186439373,0.001,2014.2,2013.4,1.84664312]
[1772186439576,3.08539444,2014.2,2013.1,2.5618275]
[1772186439750,0.61531958,2014.1,2013.1,2.56186066]
[1772186439945,0.61531958,2014.1,2012.9,11.82057113]
[1772186440287,0.61531958,2014.1,2012.9,1.24198916]
[1772186440782,0.66086441,2013.9,2012.8,0.60496239]
[1772186440982,0.66086441,2013.9,2012.7,1.319]
[1772186440983,0.66086441,2013.7,2012.7,1.319]
[1772186441279,0.66086441,2013.7,2012.7,2.5610921]
[1772186441479,2.72478787,2013.9,2012.8,3.09313885]
[1772186441776,0.66086441,2013.8,2012.8,3.09313885]
[1772186443163,1.24149575,2013.7,2012.9,1.24198916]
[1772186443559,1.24149575,2013.7,2012.8,1.86606491]
[1772186443762,0.66086441,2013.6,2012.7,1.319]
[1772186443978,0.66086441,2013.5,2012.3,1.24230968]
[1772186444156,0.66086441,2013.3,2012.2,0.62406399]
[1772186444352,0.66086441,2013.3,2012.2,1.86647715]
[1772186445156,0.66086441,2013.1,2012.2,1.86647715]
[1772186445459,0.66086441,2013.1,2012.2,0.62406399]
[1772186445664,0.66086441,2013.1,2012.1,1.24248297]
[1772186445860,0.66086441,2013.1,2012.0,5.59407913]
[1772186445861,0.66086441,2013.0,2012.0,1.24254392]
[1772186446056,0.66086441,2013.0,2012.9,0.0011]
[1772186446271,0.66086441,2013.0,2012.6,0.0011]
[1772186446651,0.66086441,2013.0,2011.9,3.12562295]
[1772186446982,0.66086441,2013.0,2012.0,0.62406399]
[1772186447201,1.24198916,2012.9,2012.0,1.86658197]
[1772186447355,4.96660893,2013.5,2012.4,0.62406399]
[1772186447555,4.96660893,2013.5,2012.6,2.46907486]
[1772186447767,4.96660893,2013.5,2012.5,0.62406399]
[1772186448182,5.62747334,2013.5,2012.4,2.74074996]
[1772186448392,0.66086441,2013.4,2012.5,3.009482]
[1772186448780,0.66086441,2013.4,2012.5,0.62406399]
[1772186449588,0.66086441,2013.7,2012.8,2.46907486]
[1772186449755,1.2415574,2013.6,2012.9,0.62406399]
[1772186450176,1.2415574,2013.6,2012.8,2.46907486]
[1772186450376,1.2415574,2013.6,2012.6,4.33531315]
[1772186450575,1.2415574,2013.6,2012.7,4.945023]
[1772186451082,1.2415574,2013.6,2012.7,2.342326]
[1772186451271,0.66086441,2013.5,2012.6,1.86623829]
[1772186451588,4.96614198,2013.7,2012.9,1.24198916]
[1772186452080,0.66086441,2013.6,2012.6,1.24212441]
[1772186452782,7.43521684,2013.7,2012.4,1.24224976]
[1772186452783,0.66086441,2013.4,2012.4,1.24224976]
[1772186453781,1.24174241,2013.3,2012.4,1.21765556]
[1772186454087,1.90260682,2013.3,2012.4,1.21765556]
[1772186455070,4.96676118,2013.5,2012.4,1.21765556]
[1772186455071,4.9665438,2013.5,2012.6,0.62406399]
[1772186455282,4.9665438,2013.5,2012.8,0.62406399]
[1772186456279,4.9665438,2013.5,2012.8,1.86606431]
[1772186456985,1.24161907,2013.5,2012.8,1.86606431]
[1772186457287,1.24161907,2013.5,2012.9,0.62406399]
[1772186457687,4.96579566,2013.8,2012.7,1.24211258]
[1772186457688,0.66086441,2013.7,2012.7,1.24211258]
[1772186457861,0.66086441,2013.7,2012.7,1.86617657]
[1772186458259,0.001,2013.1,2012.7,1.86617657]
[1772186458886,0.001,2013.1,2012.8,0.62406399]
[1772186459088,1.2415574,2013.6,2012.8,0.62406399]
[1772186459258,1.24149575,2013.7,2012.8,0.62406399]
[1772186459459,1.24242379,2013.9,2013.0,0.62406399]
[1772186459860,1.9032882,2013.9,2013.0,0.62406399]
[1772186460262,1.9032882,2013.9,2013.1,1.24186577]
[1772186460659,1.9032882,2013.9,2012.9,1.24195878]
[1772186460660,0.66086441,2013.8,2012.9,1.24195878]
[1772186460862,0.66086441,2013.8,2012.8,4.96809246]
[1772186460863,0.66086441,2013.8,2012.8,1.24200012]
[1772186461092,0.66086441,2013.8,2012.8,1.86606411]
[1772186461874,0.66086441,2013.8,2012.9,0.62406399]
[1772186462073,0.001,2013.9,2013.2,0.62406399]
[1772186462275,0.001,2013.9,2013.5,0.62406399]
[1772186462994,0.001,2013.9,2013.4,1.24168073]
[1772186463175,0.001,2013.9,2013.4,1.86574472]
[1772186464105,0.001,2013.9,2013.5,0.62406399]
[1772186464271,0.001,2013.9,2013.3,1.86579497]
[1772186464475,0.001,2013.9,2013.4,0.62406399]
[1772186465591,0.001,2014.2,2013.4,0.62406399]
[1772186465789,1.24219811,2014.2,2013.6,0.62406399]
[1772186466382,0.001,2014.2,2013.7,1.24149575]
[1772186467902,0.001,2014.2,2013.6,1.86558051]
[1772186468103,0.001,2014.2,2013.5,1.24157365]
[1772186468982,0.66086441,2013.9,2013.4,2.55867924]
[1772186469184,0.66086441,2013.9,2013.4,2.55867384]
[1772186469506,0.66186441,2014.2,2013.4,3.18273783]
[1772186470012,0.66186441,2014.2,2013.4,1.94106399]
[1772186470184,0.63379365,2013.6,2013.3,0.0011]
[1772186470385,0.63379365,2013.6,2012.7,1.24209006]
[1772186470632,0.63379365,2013.6,2013.0,0.0011]
[1772186470915,1.24174241,2013.3,2012.8,0.0011]
[1772186472023,1.87516611,2013.9,2013.0,0.63089727]
[1772186472506,0.63379365,2013.9,2013.0,0.63089727]
[1772186472812,0.001,2014.0,2013.3,1.24174241]
[1772186472984,0.001,2014.0,2013.3,1.87263968]
[1772186473386,0.63479365,2014.0,2013.3,1.87263968]
[1772186474917,1.24137246,2013.9,2013.3,1.87263968]
[1772186475118,1.8761054,2014.0,2013.3,1.87263968]
[1772186475316,1.24231175,2014.0,2013.3,1.24174241]
[1772186475519,1.24231175,2014.0,2013.3,1.87263968]
[1772186477017,0.001,2014.0,2013.5,1.87251634]
[1772186477216,0.001,2014.0,2013.5,0.63089727]
[1772186478215,0.001,2014.0,2013.2,1.87266423]
[1772186478405,0.001,2014.0,2013.3,0.63089727]
[1772186478915,0.001,2014.0,2013.4,1.872578]
[1772186479419,0.001,2014.0,2013.6,0.63089727]
[1772186480192,0.001,2014.2,2013.5,0.63089727]
[1772186480720,0.001,2014.2,2013.7,0.63089727]
[1772186480945,0.001,2014.2,2013.8,1.2414341]
[1772186481627,0.001,2014.2,2013.9,0.63089727]
[1772186481796,0.001,2014.2,2013.7,1.24144714]
[1772186482001,0.001,2014.2,2013.8,0.63089727]
[1772186482316,0.001,2014.2,2013.6,1.87239705]
[1772186482514,3.10386851,2014.2,2013.3,3.18959643]
[1772186483029,1.24124919,2014.1,2013.4,0.63089727]
[1772186483326,0.001,2014.0,2013.4,0.63089727]
[1772186484420,0.63379365,2013.9,2013.3,1.317]
[1772186485019,1.2414341,2013.8,2013.3,1.317]
[1772186485837,0.001,2014.0,2013.4,0.63089727]
[1772186486338,0.001,2014.2,2013.5,0.63089727]
[1772186486699,1.24219488,2014.2,2013.5,0.63089727]
[1772186487325,1.24219488,2014.2,2013.6,1.87245467]
[1772186487545,1.24219488,2014.2,2013.6,0.63089727]
[1772186488210,0.001,2014.2,2013.6,0.63089727]
[1772186489627,0.001,2014.2,2013.7,1.24149575]
[1772186490534,0.63479365,2014.2,2013.4,1.24163913]
[1772186490828,0.63479365,2014.2,2013.4,1.8725364]
[1772186491232,0.63479365,2014.2,2013.4,0.63089727]
[1772186491909,1.24124919,2014.1,2013.5,1.24161907]
[1772186492239,1.24221402,2014.2,2013.6,0.63089727]
[1772186492405,0.001,2014.2,2013.7,0.63089727]
[1772186494140,0.001,2014.2,2013.8,1.2414341]
[1772186494636,0.001,2014.2,2013.8,0.63089727]
[1772186496235,0.001,2014.2,2013.6,5.59701341]
[1772186496430,0.001,2014.2,2013.7,0.63089727]
[1772186496722,0.001,2014.5,2013.7,0.63089727]
[1772186496917,0.001,2015.1,2014.1,3.45592382]
[1772186497239,0.001,2015.1,2014.4,0.63089727]
[1772186497539,1.24164305,2015.1,2014.4,0.63089727]
[1772186497715,0.001,2015.1,2014.4,0.63089727]
[1772186498030,1.24165064,2015.1,2014.4,0.63089727]
[1772186498224,1.24165064,2015.1,2014.4,1.24102099]
[1772186498225,0.001,2015.1,2014.4,1.24102099]
[1772186498424,0.63479365,2015.1,2014.2,4.96457668]
[1772186499319,0.63479365,2015.1,2014.3,13.71871796]
[1772186499517,0.001,2015.1,2014.3,0.66927696]
[1772186500537,0.001,2015.1,2014.4,1.85638454]
[1772186500841,0.001,2015.1,2014.5,0.61532021]
[1772186501043,0.001,2015.1,2014.7,6.38508221]
[1772186501248,0.001,2015.1,2014.7,0.61532021]
[1772186501615,1.86250597,2015.7,2014.8,0.61532021]
[1772186501820,1.24126974,2015.7,2014.8,0.61532021]
[1772186502441,1.24126974,2015.7,2014.4,4.69698815]
[1772186502442,0.001,2015.7,2015.0,1.24069478]
[1772186502640,0.001,2015.7,2015.0,1.85601499]
[1772186503015,0.001,2015.7,2015.1,0.61532021]
[1772186504744,0.62223623,2015.7,2015.0,1.24069478]
[1772186505326,0.62223623,2015.7,2015.0,1.85601499]
[1772186505844,0.62223623,2015.7,2014.9,2.55771798]
[1772186506224,0.62223623,2015.7,2014.9,1.317]
[1772186506549,0.62223623,2015.7,2014.9,2.55775101]
[1772186506923,1.86156169,2015.6,2014.9,2.55775101]
[1772186507124,4.96230184,2015.7,2015.0,0.61532021]
[1772186507125,1.24126849,2015.7,2015.0,0.61532021]
[1772186507335,1.24126632,2015.7,2015.0,0.61532021]
[1772186507546,0.62123623,2015.6,2014.9,2.55775101]
[1772186509151,0.001,2015.7,2015.2,0.61532021]
[1772186509550,0.001,2015.7,2014.9,2.55775101]
[1772186509551,0.62123623,2015.6,2014.9,3.17307122]
[1772186510227,1.24126791,2015.7,2015.0,0.61532021]
[1772186511026,0.62223623,2015.7,2014.9,1.317]
[1772186511230,0.62123623,2015.6,2014.5,5.47823221]
[1772186511442,0.62123623,2015.6,2014.5,0.61532021]
[1772186511661,0.62123623,2015.3,2014.5,0.61532021]
[1772186513152,0.62123623,2015.3,2014.6,1.24094112]
[1772186513352,1.24049596,2015.4,2014.7,5.731891]
[1772186514125,1.24049596,2015.4,2014.7,4.984091]
[1772186514366,1.8616614,2015.5,2014.7,4.984091]
[1772186514663,0.62123623,2015.5,2014.8,0.61532021]
[1772186514855,1.24035902,2015.6,2014.8,0.61532021]
[1772186516157,0.001,2015.7,2014.8,0.61532021]
[1772186516350,1.24131985,2015.7,2014.9,1.24075636]
[1772186516853,1.24131985,2015.7,2014.9,1.85607657]
[1772186517276,0.001,2015.7,2015.0,19.643678]
[1772186517573,0.62123623,2015.6,2014.9,2.55775636]
[1772186518055,1.24127235,2015.7,2015.0,12.70129621]
[1772186518263,1.24127235,2015.7,2015.0,0.61532021]
[1772186518434,1.24127235,2015.7,2015.1,1.24063321]
[1772186518435,0.001,2015.7,2015.1,1.24063321]
[1772186518637,0.001,2015.7,2015.2,0.61532021]
[1772186519441,1.24112698,2016.0,2015.3,0.61532021]
[1772186519635,0.001,2016.0,2015.3,0.61532021]
[1772186520358,1.24108413,2016.0,2015.3,0.61532021]
[1772186520557,1.24108413,2016.0,2015.0,8.41845669]
[1772186520558,0.62123623,2015.9,2015.0,1.85601499]
[1772186521762,0.62123623,2015.9,2015.2,0.0011]
[1772186521956,0.001,2015.5,2015.2,0.0011]
[1772186523653,0.62223623,2015.5,2015.2,0.0011]
[1772186523972,0.001,2015.5,2015.2,0.0011]
[1772186525151,0.62223623,2015.5,2015.0,0.0011]
[1772186526003,0.001,2015.5,2015.0,0.0011]
[1772186527169,0.001,2015.5,2015.0,0.61642021]
[1772186527671,0.62223623,2015.5,2015.0,0.0011]
[1772186528835,1.86168477,2015.4,2015.0,0.0011]
[1772186529041,1.86168477,2015.4,2014.7,0.0011]
[1772186529042,0.62123623,2015.3,2014.7,0.0011]
[1772186530842,0.62477879,2015.1,2014.7,0.0011]
[1772186531863,0.62477879,2015.1,2014.2,1.91889149]
[1772186532477,0.62477879,2015.1,2013.9,0.67774999]
[1772186533063,1.86547357,2015.0,2014.0,1.24131082]
[1772186533268,1.86547357,2015.0,2014.1,0.67774999]
[1772186533660,0.62477879,2014.4,2013.7,0.0011]
[1772186533956,0.62477879,2014.4,2013.4,3.34670163]
[1772186533957,4.08070261,2014.2,2013.2,4.96830778]
[1772186534145,0.62477879,2014.2,2013.5,1.24269525]
[1772186534349,0.62477879,2014.2,2013.5,0.0011]
[1772186534883,0.62477879,2014.2,2013.5,1.24270706]
[1772186535071,1.24106433,2014.4,2014.3,0.0011]
[1772186535375,1.24106433,2014.4,2014.0,0.0011]
[1772186536854,0.62477879,2014.9,2014.0,0.0011]
[1772186537177,0.62477879,2014.6,2014.0,0.0011]
[1772186538669,1.24081794,2014.8,2014.0,0.67884999]
[1772186539046,5.58742924,2015.1,2014.2,0.67774999]
[1772186539253,0.62477879,2015.0,2014.2,0.67774999]
[1772186541156,0.62477879,2014.7,2014.0,0.0011]
[1772186543263,1.24094112,2014.6,2014.0,0.0011]
[1772186543885,0.62477879,2014.5,2014.0,0.0011]
[1772186544178,0.62477879,2014.1,2013.5,0.0011]